Workbook

Sheet clock
D1: hours | E1: minutes | F1: seconds
B2: Time | C2: =NOW() -> 2016-05-25T13:15:02.600 | D2: =HOUR(C2) -> 13 | E2: =MINUTE(C2) -> 15 | F2: =SECOND(C2) -> 3
B3: Ratio | D3: =C2-INT(C2)-IF(C2-INT(C2)>=0.5,0.5,0) -> 0.05211342593 | E3: =(E2*60+F2)/3600 -> 0.2508333333 | F3: =F2/60 -> 0.05
B4: Rotation | D4: =2*360*D3/rad2deg -> 0.6548781555 | E4: =360*E3/rad2deg -> 1.576036 | F4: =360*F3/rad2deg -> 0.31416
B6: point | C6: 1 | D6: 2 | E6: 3 | F6: 4 | G6: 5 | H6: 6 | I6: 7 | J6: 8 | K6: 9 | L6: 10 | M6: 11 | N6: 12 | O6: 13 | P6: 14 | Q6: 15 | R6: 16 | S6: 17 | T6: 18 | U6: 19 | V6: 20 | W6: 21 | X6: 22 | Y6: 23 | Z6: 24 | AA6: 25 | AB6: 26
B7: HourX | C7: =-pointers!C5*COS(pointers!C6/rad2deg+$D$4) -> -1.218119394 | D7: =-pointers!D5*COS(pointers!D6/rad2deg+$D$4) -> -1.58624429 | E7: =-pointers!E5*COS(pointers!E6/rad2deg+$D$4) -> 0.4250030757 | F7: =-pointers!F5*COS(pointers!F6/rad2deg+$D$4) -> 0.6375046136 | G7: =-pointers!G5*COS(pointers!G6/rad2deg+$D$4) -> 1.49722142 | H7: =-pointers!H5*COS(pointers!H6/rad2deg+$D$4) -> 1.643128296 | I7: =-pointers!I5*COS(pointers!I6/rad2deg+$D$4) -> 1.6715703 | J7: =-pointers!J5*COS(pointers!J6/rad2deg+$D$4) -> 3.127632164 | K7: =-pointers!K5*COS(pointers!K6/rad2deg+$D$4) -> 3.37828636 | L7: =-pointers!L5*COS(pointers!L6/rad2deg+$D$4) -> 4.688441348 | M7: =-pointers!M5*COS(pointers!M6/rad2deg+$D$4) -> 5.510005496 | N7: =-pointers!N5*COS(pointers!N6/rad2deg+$D$4) -> 6.303127641 | O7: =-pointers!O5*COS(pointers!O6/rad2deg+$D$4) -> 9.05662694 | P7: =-pointers!P5*COS(pointers!P6/rad2deg+$D$4) -> 9.215338321 | Q7: =-pointers!Q5*COS(pointers!Q6/rad2deg+$D$4) -> 7.096311641 | R7: =-pointers!R5*COS(pointers!R6/rad2deg+$D$4) -> 7.889429312 | S7: =-pointers!S5*COS(pointers!S6/rad2deg+$D$4) -> 6.274733603 | T7: =-pointers!T5*COS(pointers!T6/rad2deg+$D$4) -> 5.757689782 | U7: =-pointers!U5*COS(pointers!U6/rad2deg+$D$4) -> 6.61740637 | V7: =-pointers!V5*COS(pointers!V6/rad2deg+$D$4) -> 5.637204798 | W7: =-pointers!W5*COS(pointers!W6/rad2deg+$D$4) -> 3.229391418 | X7: =-pointers!X5*COS(pointers!X6/rad2deg+$D$4) -> 2.766233666 | Y7: =-pointers!Y5*COS(pointers!Y6/rad2deg+$D$4) -> 3.016881816 | Z7: =-pointers!Z5*COS(pointers!Z6/rad2deg+$D$4) -> 2.011254544 | AA7: =-pointers!AA5*COS(pointers!AA6/rad2deg+$D$4) -> 1.586235341 | AB7: =-pointers!AB5*COS(pointers!AB6/rad2deg+$D$4) -> -1.218119394
B8: HourY | C8: =pointers!C5*SIN(pointers!C6/rad2deg+$D$4) -> -1.586248764 | D8: =pointers!D5*SIN(pointers!D6/rad2deg+$D$4) -> 1.218125221 | E8: =pointers!E5*SIN(pointers!E6/rad2deg+$D$4) -> 2.1953069 | F8: =pointers!F5*SIN(pointers!F6/rad2deg+$D$4) -> 3.29296035 | G8: =pointers!G5*SIN(pointers!G6/rad2deg+$D$4) -> 3.263177595 | H8: =pointers!H5*SIN(pointers!H6/rad2deg+$D$4) -> 3.78155119 | I8: =pointers!I5*SIN(pointers!I6/rad2deg+$D$4) -> 6.281389395 | J8: =pointers!J5*SIN(pointers!J6/rad2deg+$D$4) -> 7.684914902 | K8: =pointers!K5*SIN(pointers!K6/rad2deg+$D$4) -> 6.862010002 | L8: =pointers!L5*SIN(pointers!L6/rad2deg+$D$4) -> 7.747161914 | M8: =pointers!M5*SIN(pointers!M6/rad2deg+$D$4) -> 9.637937509 | N8: =pointers!N5*SIN(pointers!N6/rad2deg+$D$4) -> 9.028874899 | O8: =pointers!O5*SIN(pointers!O6/rad2deg+$D$4) -> 11.95773843 | P8: =pointers!P5*SIN(pointers!P6/rad2deg+$D$4) -> 11.83585821 | Q8: =pointers!Q5*SIN(pointers!Q6/rad2deg+$D$4) -> 8.419760156 | R8: =pointers!R5*SIN(pointers!R6/rad2deg+$D$4) -> 7.81069172 | S8: =pointers!S5*SIN(pointers!S6/rad2deg+$D$4) -> 6.528990597 | T8: =pointers!T5*SIN(pointers!T6/rad2deg+$D$4) -> 5.034779873 | U8: =pointers!U5*SIN(pointers!U6/rad2deg+$D$4) -> 5.004990802 | V8: =pointers!V5*SIN(pointers!V6/rad2deg+$D$4) -> 3.23603493 | W8: =pointers!W5*SIN(pointers!W6/rad2deg+$D$4) -> 2.563402245 | X8: =pointers!X5*SIN(pointers!X6/rad2deg+$D$4) -> 2.288657097 | Y8: =pointers!Y5*SIN(pointers!Y6/rad2deg+$D$4) -> 1.465750356 | Z8: =pointers!Z5*SIN(pointers!Z6/rad2deg+$D$4) -> 0.977166904 | AA8: =pointers!AA5*SIN(pointers!AA6/rad2deg+$D$4) -> -1.218136874 | AB8: =pointers!AB5*SIN(pointers!AB6/rad2deg+$D$4) -> -1.586248764
B9: MinX | C9: =-pointers!C31*COS(pointers!C32/rad2deg+$E$4) -> -1.999972584 | D9: =-pointers!D31*COS(pointers!D32/rad2deg+$E$4) -> 0.01047929846 | E9: =-pointers!E31*COS(pointers!E32/rad2deg+$E$4) -> 2.005212195 | F9: =-pointers!F31*COS(pointers!F32/rad2deg+$E$4) -> 3.010438117 | G9: =-pointers!G31*COS(pointers!G32/rad2deg+$E$4) -> 4.01042439 | H9: =-pointers!H31*COS(pointers!H32/rad2deg+$E$4) -> 6.005157287 | I9: =-pointers!I31*COS(pointers!I32/rad2deg+$E$4) -> 7.00514356 | J9: =-pointers!J31*COS(pointers!J32/rad2deg+$E$4) -> 8.007749657 | K9: =-pointers!K31*COS(pointers!K32/rad2deg+$E$4) -> 10.00510238 | L9: =-pointers!L31*COS(pointers!L32/rad2deg+$E$4) -> 11.00770848 | M9: =-pointers!M31*COS(pointers!M32/rad2deg+$E$4) -> 13.50924605 | N9: =-pointers!N31*COS(pointers!N32/rad2deg+$E$4) -> 14.00242765 | O9: =-pointers!O31*COS(pointers!O32/rad2deg+$E$4) -> 20.00024942 | P9: =-pointers!P31*COS(pointers!P32/rad2deg+$E$4) -> 19.99919999 | Q9: =-pointers!Q31*COS(pointers!Q32/rad2deg+$E$4) -> 13.99718378 | R9: =-pointers!R31*COS(pointers!R32/rad2deg+$E$4) -> 13.49456717 | S9: =-pointers!S31*COS(pointers!S32/rad2deg+$E$4) -> 12.99195055 | T9: =-pointers!T31*COS(pointers!T32/rad2deg+$E$4) -> 8.994629114 | U9: =-pointers!U31*COS(pointers!U32/rad2deg+$E$4) -> 8.989382119 | V9: =-pointers!V31*COS(pointers!V32/rad2deg+$E$4) -> 5.994670411 | W9: =-pointers!W31*COS(pointers!W32/rad2deg+$E$4) -> 4.994684177 | X9: =-pointers!X31*COS(pointers!X32/rad2deg+$E$4) -> 3.992074444 | Y9: =-pointers!Y31*COS(pointers!Y32/rad2deg+$E$4) -> 2.99208821 | Z9: =-pointers!Z31*COS(pointers!Z32/rad2deg+$E$4) -> 1.994725473 | AA9: =-pointers!AA31*COS(pointers!AA32/rad2deg+$E$4) -> -0.01049399108 | AB9: =-pointers!AB31*COS(pointers!AB32/rad2deg+$E$4) -> -1.999972584
B10: MinY | C10: =pointers!C31*SIN(pointers!C32/rad2deg+$E$4) -> 0.01047195215 | D10: =pointers!D31*SIN(pointers!D32/rad2deg+$E$4) -> 1.999972546 | E10: =pointers!E31*SIN(pointers!E32/rad2deg+$E$4) -> 0.9895069745 | F10: =pointers!F31*SIN(pointers!F32/rad2deg+$E$4) -> 1.984253598 | G10: =pointers!G31*SIN(pointers!G32/rad2deg+$E$4) -> 1.979013949 | H10: =pointers!H31*SIN(pointers!H32/rad2deg+$E$4) -> 0.9685483776 | I10: =pointers!I31*SIN(pointers!I32/rad2deg+$E$4) -> 0.9633087283 | J10: =pointers!J31*SIN(pointers!J32/rad2deg+$E$4) -> 1.458062216 | K10: =pointers!K31*SIN(pointers!K32/rad2deg+$E$4) -> 0.9475897806 | L10: =pointers!L31*SIN(pointers!L32/rad2deg+$E$4) -> 1.442343268 | M10: =pointers!M31*SIN(pointers!M32/rad2deg+$E$4) -> 1.729240027 | N10: =pointers!N31*SIN(pointers!N32/rad2deg+$E$4) -> 0.4266380473 | O10: =pointers!O31*SIN(pointers!O32/rad2deg+$E$4) -> -0.004794357305 | P10: =pointers!P31*SIN(pointers!P32/rad2deg+$E$4) -> -0.2049385342 | Q10: =pointers!Q31*SIN(pointers!Q32/rad2deg+$E$4) -> -0.5734510548 | R10: =pointers!R31*SIN(pointers!R32/rad2deg+$E$4) -> -1.070820674 | S10: =pointers!S31*SIN(pointers!S32/rad2deg+$E$4) -> -1.568190294 | T10: =pointers!T31*SIN(pointers!T32/rad2deg+$E$4) -> -1.047209194 | U10: =pointers!U31*SIN(pointers!U32/rad2deg+$E$4) -> -2.047195429 | V10: =pointers!V31*SIN(pointers!V32/rad2deg+$E$4) -> -1.031468208 | W10: =pointers!W31*SIN(pointers!W32/rad2deg+$E$4) -> -1.026221212 | X10: =pointers!X31*SIN(pointers!X32/rad2deg+$E$4) -> -1.520967334 | Y10: =pointers!Y31*SIN(pointers!Y32/rad2deg+$E$4) -> -1.515720338 | Z10: =pointers!Z31*SIN(pointers!Z32/rad2deg+$E$4) -> -1.010480226 | AA10: =pointers!AA31*SIN(pointers!AA32/rad2deg+$E$4) -> -1.999972469 | AB10: =pointers!AB31*SIN(pointers!AB32/rad2deg+$E$4) -> 0.01047195215
B11: SecX | C11: =-pointers!C57*COS(pointers!C58/rad2deg+$F$4) -> -1.640194094 | D11: =-pointers!D57*COS(pointers!D58/rad2deg+$F$4) -> -1.485685248 | E11: =-pointers!E57*COS(pointers!E58/rad2deg+$F$4) -> -1.711598917 | F11: =-pointers!F57*COS(pointers!F58/rad2deg+$F$4) -> -1.878109368 | G11: =-pointers!G57*COS(pointers!G58/rad2deg+$F$4) -> -1.402581224 | H11: =-pointers!H57*COS(pointers!H58/rad2deg+$F$4) -> -1.093563531 | I11: =-pointers!I57*COS(pointers!I58/rad2deg+$F$4) -> -1.902112579 | J11: =-pointers!J57*COS(pointers!J58/rad2deg+$F$4) -> -0.3330209032 | K11: =-pointers!K57*COS(pointers!K58/rad2deg+$F$4) -> 0.4515249345 | L11: =-pointers!L57*COS(pointers!L58/rad2deg+$F$4) -> 4.468754944 | M11: =-pointers!M57*COS(pointers!M58/rad2deg+$F$4) -> 4.302244493 | N11: =-pointers!N57*COS(pointers!N58/rad2deg+$F$4) -> 5.08679033 | O11: =-pointers!O57*COS(pointers!O58/rad2deg+$F$4) -> 6.394265925 | P11: =-pointers!P57*COS(pointers!P58/rad2deg+$F$4) -> 6.58462368 | Q11: =-pointers!Q57*COS(pointers!Q58/rad2deg+$F$4) -> 6.037971248 | R11: =-pointers!R57*COS(pointers!R58/rad2deg+$F$4) -> 6.204473577 | S11: =-pointers!S57*COS(pointers!S58/rad2deg+$F$4) -> 5.419921888 | T11: =-pointers!T57*COS(pointers!T58/rad2deg+$F$4) -> 1.402601049 | U11: =-pointers!U57*COS(pointers!U58/rad2deg+$F$4) -> 1.569103379 | V11: =-pointers!V57*COS(pointers!V58/rad2deg+$F$4) -> 1.902108038 | W11: =-pointers!W57*COS(pointers!W58/rad2deg+$F$4) -> -0.1425223503 | X11: =-pointers!X57*COS(pointers!X58/rad2deg+$F$4) -> -0.4515470302 | Y11: =-pointers!Y57*COS(pointers!Y58/rad2deg+$F$4) -> 0.02397997938 | Z11: =-pointers!Z57*COS(pointers!Z58/rad2deg+$F$4) -> -0.7605717101 | AA11: =-pointers!AA57*COS(pointers!AA58/rad2deg+$F$4) -> -1.295505658 | AB11: =-pointers!AB57*COS(pointers!AB58/rad2deg+$F$4) -> -1.450017998
B12: SecY | C12: =pointers!C57*SIN(pointers!C58/rad2deg+$F$4) -> -4.724379677 | D12: =pointers!D57*SIN(pointers!D58/rad2deg+$F$4) -> -4.248851532 | E12: =pointers!E57*SIN(pointers!E58/rad2deg+$F$4) -> -3.649716311 | F12: =pointers!F57*SIN(pointers!F58/rad2deg+$F$4) -> -2.544151175 | G12: =pointers!G57*SIN(pointers!G58/rad2deg+$F$4) -> -2.698660021 | H12: =pointers!H57*SIN(pointers!H58/rad2deg+$F$4) -> -1.747603732 | I12: =pointers!I57*SIN(pointers!I58/rad2deg+$F$4) -> 0.6180353861 | J12: =pointers!J57*SIN(pointers!J58/rad2deg+$F$4) -> 2.211130272 | K12: =pointers!K57*SIN(pointers!K58/rad2deg+$F$4) -> 3.007677714 | L12: =pointers!L57*SIN(pointers!L58/rad2deg+$F$4) -> 15.37140947 | M12: =pointers!M57*SIN(pointers!M58/rad2deg+$F$4) -> 16.47697461 | N12: =pointers!N57*SIN(pointers!N58/rad2deg+$F$4) -> 17.27352205 | O12: =pointers!O57*SIN(pointers!O58/rad2deg+$F$4) -> 20.00308384 | P12: =pointers!P57*SIN(pointers!P58/rad2deg+$F$4) -> 19.94123193 | Q12: =pointers!Q57*SIN(pointers!Q58/rad2deg+$F$4) -> 16.96446 | R12: =pointers!R57*SIN(pointers!R58/rad2deg+$F$4) -> 15.85889364 | S12: =pointers!S57*SIN(pointers!S58/rad2deg+$F$4) -> 15.06235197 | T12: =pointers!T57*SIN(pointers!T58/rad2deg+$F$4) -> 2.698649717 | U12: =pointers!U57*SIN(pointers!U58/rad2deg+$F$4) -> 1.593083358 | V12: =pointers!V57*SIN(pointers!V58/rad2deg+$F$4) -> -0.6180493598 | W12: =pointers!W57*SIN(pointers!W58/rad2deg+$F$4) -> -2.056620378 | X12: =pointers!X57*SIN(pointers!X58/rad2deg+$F$4) -> -3.007674397 | Y12: =pointers!Y57*SIN(pointers!Y58/rad2deg+$F$4) -> -3.162186737 | Z12: =pointers!Z57*SIN(pointers!Z58/rad2deg+$F$4) -> -3.958728416 | AA12: =pointers!AA57*SIN(pointers!AA58/rad2deg+$F$4) -> -4.310645554 | AB12: =pointers!AB57*SIN(pointers!AB58/rad2deg+$F$4) -> -4.786172563

Sheet pointers
A1: rad2deg | B1: =180/3.1416 -> 57.29564553
A3: Hours | B3: X | C3: 0 | D3: 2 | E3: 1 | F3: 1.5 | G3: 0.8 | H3: 1 | I3: 2.5 | J3: 2.2 | K3: 1.5 | L3: 1 | M3: 1.5 | N3: 0.5 | O3: 0.1 | P3: =-O3 -> -0.1 | Q3: =-N3 -> -0.5 | R3: =-M3 -> -1.5 | S3: =-L3 -> -1 | T3: =-K3 -> -1.5 | U3: =-J3 -> -2.2 | V3: =-I3 -> -2.5 | W3: =-H3 -> -1 | X3: =-G3 -> -0.8 | Y3: =-F3 -> -1.5 | Z3: =-E3 -> -1 | AA3: =-D3 -> -2 | AB3: =-C3 -> 0
B4: Y | C4: -2 | D4: 0 | E4: 2 | F4: 3 | G4: 3.5 | H4: 4 | I4: 6 | J4: 8 | K4: 7.5 | L4: 9 | M4: 11 | N4: 11 | O4: 15 | P4: =O4 -> 15 | Q4: =N4 -> 11 | R4: =M4 -> 11 | S4: =L4 -> 9 | T4: =K4 -> 7.5 | U4: =J4 -> 8 | V4: =I4 -> 6 | W4: =H4 -> 4 | X4: =G4 -> 3.5 | Y4: =F4 -> 3 | Z4: =E4 -> 2 | AA4: =D4 -> 0 | AB4: =C4 -> -2
B5: length | C5: =SQRT(C3*C3+C4*C4) -> 2 | D5: =SQRT(D3*D3+D4*D4) -> 2 | E5: 2.236067977 | F5: 3.354101966 | G5: 3.590264614 | H5: 4.123105626 | I5: 6.5 | J5: 8.296987405 | K5: 7.64852927 | L5: 9.055385138 | M5: 11.10180166 | N5: 11.01135777 | O5: 15.00033333 | P5: 15.00033333 | Q5: 11.01135777 | R5: 11.10180166 | S5: 9.055385138 | T5: 7.64852927 | U5: 8.296987405 | V5: 6.5 | W5: 4.123105626 | X5: 3.590264614 | Y5: 3.354101966 | Z5: 2.236067977 | AA5: 2 | AB5: 2
B6: angle | C6: =IF(C3>0,ATAN(C4/C3)*rad2deg,IF(C3=0,IF(C4>0,1,-1)*90,ATAN(C4/C3)*rad2deg+180)) -> -90 | D6: 0 | E6: 63.43480048 | F6: 63.43480048 | G6: 77.12481809 | H6: 75.9635789 | I6: 67.37997749 | J6: 74.62357425 | K6: 78.68988351 | L6: 83.65961262 | M6: 82.23464168 | N6: 87.39723342 | O6: 89.61782423 | P6: 90.38217577 | Q6: 92.60276658 | R6: 97.76535832 | S6: 96.34038738 | T6: 101.3101165 | U6: 105.3764258 | V6: 112.6200225 | W6: 104.0364211 | X6: 102.8751819 | Y6: 116.5651995 | Z6: 116.5651995 | AA6: 180 | AB6: -90
A29: Minutes | B29: X | C29: 0 | D29: 2 | E29: 1 | F29: 2 | G29: 2 | H29: 1 | I29: 1 | J29: 1.5 | K29: 1 | L29: 1.5 | M29: 1.8 | N29: 0.5 | O29: 0.1 | P29: =-O29 -> -0.1 | Q29: =-N29 -> -0.5 | R29: -1 | S29: -1.5 | T29: -1 | U29: -2 | V29: -1 | W29: -1 | X29: -1.5 | Y29: -1.5 | Z29: =-E29 -> -1 | AA29: =-D29 -> -2 | AB29: =-C29 -> 0
B30: Y | C30: -2 | D30: 0 | E30: 2 | F30: 3 | G30: 4 | H30: 6 | I30: 7 | J30: 8 | K30: 10 | L30: 11 | M30: 13.5 | N30: 14 | O30: 20 | P30: =O30 -> 20 | Q30: =N30 -> 14 | R30: 13.5 | S30: 13 | T30: 9 | U30: 9 | V30: 6 | W30: 5 | X30: 4 | Y30: 3 | Z30: =E30 -> 2 | AA30: =D30 -> 0 | AB30: =C30 -> -2
B31: length | C31: =SQRT(C29*C29+C30*C30) -> 2 | D31: =SQRT(D29*D29+D30*D30) -> 2 | E31: 2.236067977 | F31: 3.605551275 | G31: 4.472135955 | H31: 6.08276253 | I31: 7.071067812 | J31: 8.139410298 | K31: 10.04987562 | L31: 11.10180166 | M31: 13.61947136 | N31: 14.00892573 | O31: 20.00025 | P31: 20.00025 | Q31: 14.00892573 | R31: 13.53698637 | S31: 13.08625233 | T31: 9.055385138 | U31: 9.219544457 | V31: 6.08276253 | W31: 5.099019514 | X31: 4.272001873 | Y31: 3.354101966 | Z31: 2.236067977 | AA31: 2 | AB31: 2
B32: angle | C32: =IF(C29>0,ATAN(C30/C29)*rad2deg,IF(C29=0,IF(C30>0,1,-1)*90,ATAN(C30/C29)*rad2deg+180)) -> -90 | D32: 0 | E32: 63.43480048 | F32: 56.3098008 | G32: 63.43480048 | H32: 80.53748946 | I32: 81.8697062 | J32: 79.3801591 | K32: 84.28920976 | L32: 82.23464168 | M32: 82.40516393 | N32: 87.95438584 | O32: 89.7133137 | P32: 90.2866863 | Q32: 92.04561416 | R32: 94.23659535 | S32: 96.58213972 | T32: 96.34038738 | U32: 102.5289889 | V32: 99.46251054 | W32: 101.3101165 | X32: 110.5562076 | Y32: 116.5651995 | Z32: 116.5651995 | AA32: 180 | AB32: -90
A55: Seconds | B55: X | C55: 0.1 | D55: 0.1 | E55: 0.5 | F55: 1 | G55: 0.5 | H55: 0.5 | I55: 2 | J55: 1 | K55: 0.5 | L55: 0.5 | M55: 1 | N55: 0.5 | O55: 0.1 | P55: =-O55 -> -0.1 | Q55: =-N55 -> -0.5 | R55: =-M55 -> -1 | S55: =-L55 -> -0.5 | T55: =-K55 -> -0.5 | U55: =-J55 -> -1 | V55: =-I55 -> -2 | W55: =-H55 -> -0.5 | X55: =-G55 -> -0.5 | Y55: =-F55 -> -1 | Z55: =-E55 -> -0.5 | AA55: =-D55 -> -0.1 | AB55: =-C55 -> -0.1
B56: Y | C56: -5 | D56: -4.5 | E56: -4 | F56: -3 | G56: -3 | H56: -2 | I56: 0 | J56: 2 | K56: 3 | L56: 16 | M56: 17 | N56: 18 | O56: 21 | P56: =O56 -> 21 | Q56: =N56 -> 18 | R56: =M56 -> 17 | S56: =L56 -> 16 | T56: =K56 -> 3 | U56: =J56 -> 2 | V56: =I56 -> 0 | W56: =H56 -> -2 | X56: =G56 -> -3 | Y56: =F56 -> -3 | Z56: =E56 -> -4 | AA56: =D56 -> -4.5 | AB56: =C56 -> -5
B57: length | C57: =SQRT(C55*C55+C56*C56) -> 5.0009999 | D57: =SQRT(D55*D55+D56*D56) -> 4.501110974 | E57: =SQRT(E55*E55+E56*E56) -> 4.031128874 | F57: =SQRT(F55*F55+F56*F56) -> 3.16227766 | G57: =SQRT(G55*G55+G56*G56) -> 3.041381265 | H57: =SQRT(H55*H55+H56*H56) -> 2.061552813 | I57: =SQRT(I55*I55+I56*I56) -> 2 | J57: =SQRT(J55*J55+J56*J56) -> 2.236067977 | K57: =SQRT(K55*K55+K56*K56) -> 3.041381265 | L57: =SQRT(L55*L55+L56*L56) -> 16.00781059 | M57: =SQRT(M55*M55+M56*M56) -> 17.02938637 | N57: =SQRT(N55*N55+N56*N56) -> 18.00694311 | O57: =SQRT(O55*O55+O56*O56) -> 21.00023809 | P57: =SQRT(P55*P55+P56*P56) -> 21.00023809 | Q57: =SQRT(Q55*Q55+Q56*Q56) -> 18.00694311 | R57: =SQRT(R55*R55+R56*R56) -> 17.02938637 | S57: =SQRT(S55*S55+S56*S56) -> 16.00781059 | T57: =SQRT(T55*T55+T56*T56) -> 3.041381265 | U57: =SQRT(U55*U55+U56*U56) -> 2.236067977 | V57: =SQRT(V55*V55+V56*V56) -> 2 | W57: =SQRT(W55*W55+W56*W56) -> 2.061552813 | X57: =SQRT(X55*X55+X56*X56) -> 3.041381265 | Y57: =SQRT(Y55*Y55+Y56*Y56) -> 3.16227766 | Z57: =SQRT(Z55*Z55+Z56*Z56) -> 4.031128874 | AA57: =SQRT(AA55*AA55+AA56*AA56) -> 4.501110974 | AB57: =SQRT(AB55*AB55+AB56*AB56) -> 5.0009999
B58: angle | C58: =IF(C55>0,ATAN(C56/C55)*rad2deg,IF(C55=0,IF(C56>0,1,-1)*90,ATAN(C56/C55)*rad2deg+180)) -> -88.85402938 | D58: -88.7267625 | E58: -82.87478985 | F58: -71.56488383 | G58: -80.53748946 | H58: -75.9635789 | I58: 0 | J58: 63.43480048 | K58: 80.53748946 | L58: 88.20988312 | M58: 86.63333675 | N58: 88.40865299 | O58: 89.7269552 | P58: 90.2730448 | Q58: 91.59134701 | R58: 93.36666325 | S58: 91.79011688 | T58: 99.46251054 | U58: 116.5651995 | V58: 180 | W58: 255.9635789 | X58: 260.5374895 | Y58: 251.5648838 | Z58: 262.8747899 | AA58: 268.7267625 | AB58: 268.8540294

Sheet Sheet3
